fUST/lending_fUST_20240204
["ID","MTS","AMOUNT","RATE_DAILY","PERIOD"]
[313231750,1706980239318,-308.37268485,0.00027397,2]
[313231751,1706980239327,-500.0,0.00027397,2]
[313231752,1706980239336,-500.0,0.00027397,2]
[313231753,1706980239345,-500.0,0.00027397,2]
[313231754,1706980239356,-500.0,0.00027397,2]
[313231755,1706980239366,-417.62531425,0.00027397,2]
[313231756,1706980239376,-500.0,0.00027397,2]
[313231757,1706980239385,-506.59111545,0.00027397,2]
[313231758,1706980239395,-500.0,0.00027397,2]
[313231759,1706980239404,-500.0,0.00027397,2]
[313231760,1706980239414,-500.0,0.00027397,2]
[313231761,1706980239423,-320.28093465,0.00027397,2]
[313231762,1706980239432,-500.0,0.00027397,2]
[313231763,1706980239441,-505.88117629,0.00027397,2]
[313231764,1706980239452,-508.84074128,0.00027397,2]
[313231765,1706980239461,-504.62288054,0.00027397,2]
[313231766,1706980239471,-505.61619828,0.00027397,2]
[313231767,1706980239480,-513.93419891,0.00027397,2]
[313231768,1706980239489,-500.0,0.00027397,2]
[313231769,1706980239498,-503.81745858,0.00027397,2]
[313231770,1706980239508,-503.37405009,0.00027397,2]
[313231771,1706980239521,-500.0,0.00027397,2]
[313231772,1706980239530,-500.0,0.00027397,2]
[313231773,1706980239539,-505.95287227,0.00027397,2]
[313231774,1706980239548,-501.95979755,0.00027397,2]
[313231775,1706980239557,-240.43038265,0.00027397,2]
[313231776,1706980239567,-500.0,0.00027397,2]
[313231777,1706980239576,-500.0,0.00027397,2]
[313231778,1706980239586,-500.0,0.00027397,2]
[313231779,1706980239597,-501.56367019,0.00027397,2]
[313231780,1706980239607,-530.44382497,0.00027397,2]
[313231781,1706980239616,-525.34101276,0.00027397,2]
[313231782,1706980239625,-500.0,0.00027397,2]
[313231783,1706980239634,-509.16728415,0.00027397,2]
[313231784,1706980239644,-500.0,0.00027397,2]
[313231785,1706980239653,-500.0,0.00027397,2]
[313231786,1706980239663,-180.9410393,0.00027397,2]
[313231787,1706980239674,-500.0,0.00027397,2]
[313231788,1706980239683,-500.0,0.00027397,2]
[313231789,1706980239693,-500.0,0.00027397,2]
[313231790,1706980239702,-500.0,0.00027397,2]
[313231791,1706980239712,-500.0,0.00027397,2]
[313231792,1706980239722,-500.0,0.00027397,2]
[313231793,1706980239733,-1644.95,0.00027397,2]
[313231794,1706980239743,-500.0,0.00027397,2]
[313231795,1706980239753,-500.0,0.00027397,2]
[313231796,1706980239762,-552.69410233,0.00027397,2]
[313231797,1706980239771,-500.0,0.00027397,2]
[313231798,1706980239780,-500.0,0.00027397,2]
[313231799,1706980239789,-500.0,0.00027397,2]
[313231800,1706980239799,-500.0,0.00027397,2]
[313231801,1706980239807,-500.0,0.00027397,2]
[313231802,1706980239818,-500.0,0.00027397,2]
[313231803,1706980239827,-500.0,0.00027397,2]
[313231804,1706980239836,-500.0,0.00027397,2]
[313231805,1706980239845,-500.0,0.00027397,2]
[313231806,1706980239854,-500.0,0.00027397,2]
[313231807,1706980239863,-500.0,0.00027397,2]
[313231808,1706980239871,-500.0,0.00027397,2]
[313231809,1706980239881,-506.1910347,0.00027397,2]
[313231810,1706980239890,-502.56,0.00027397,2]
[313231811,1706980239899,-500.0,0.00027397,2]
[313231812,1706980239908,-500.0,0.00027397,2]
[313231813,1706980239918,-501.37259724,0.00027397,2]
[313231814,1706980239927,-500.0,0.00027397,2]
[313231815,1706980239936,-500.0,0.00027397,2]
[313231816,1706980239945,-500.0,0.00027397,2]
[313231817,1706980239955,-549.09261835,0.00027397,2]
[313231818,1706980239964,-500.0,0.00027397,2]
[313231819,1706980239973,-527.02232909,0.00027397,2]
[313231820,1706980239983,-500.0,0.00027397,2]
[313231821,1706980239992,-500.0,0.00027397,2]
[313231822,1706980240000,-500.49854135,0.00027397,2]
[313231823,1706980240010,-500.0,0.00027397,2]
[313231824,1706980240019,-500.0,0.00027397,2]
[313231825,1706980240027,-500.0,0.00027397,2]
[313231826,1706980240037,-500.0,0.00027397,2]
[313231827,1706980240046,-500.0,0.00027397,2]
[313231828,1706980240055,-500.0,0.00027397,2]
[313231829,1706980240064,-500.0,0.00027397,2]
[313231830,1706980240073,-500.0,0.00027397,2]
[313231831,1706980240082,-835.37,0.00027397,2]
[313231832,1706980240092,-6605.22,0.00027397,2]
[313231833,1706980240101,-624.15640998,0.00027397,2]
[313231834,1706980240110,-500.0,0.00027397,2]
[313231835,1706980240120,-599.8,0.00027397,2]
[313231836,1706980240129,-500.0,0.00027397,2]
[313231837,1706980240139,-500.0,0.00027397,2]
[313231838,1706980240148,-500.0,0.00027397,2]
[313231839,1706980240157,-500.0,0.00027397,2]
[313231840,1706980240166,-4004.31,0.00027397,2]
[313231841,1706980240175,-500.0,0.00027397,2]
[313231842,1706980240184,-686.67665126,0.00027397,2]
[313231843,1706980240194,-159.456658,0.00027465,2]
[313231844,1706980240203,-395.99999999,0.000275,2]
[313231845,1706980240212,-500.0,0.00027671,2]
[313231846,1706980240220,-500.0,0.00027671,2]
[313231847,1706980240229,-504.99545555,0.00027671,2]
[313231848,1706980240239,-503.93231267,0.00027671,2]
[313231849,1706980240248,-500.0,0.00027671,2]
[313231850,1706980240257,-445.72663944,0.00027671,2]
[313231851,1706980240266,-588.78001262,0.00027671,2]
[313231852,1706980240275,-500.0,0.00027671,2]
[313231853,1706980240284,-500.0,0.00027671,2]
[313231854,1706980240293,-500.0,0.00027671,2]
[313231855,1706980240303,-1644.95,0.00027671,2]
[313231856,1706980240312,-500.0,0.00027671,2]
[313231857,1706980240321,-500.0,0.00027671,2]
[313231858,1706980240330,-504.73072043,0.00027671,2]
[313231859,1706980240339,-500.0,0.00027671,2]
[313231860,1706980240348,-502.56,0.00027671,2]
[313231861,1706980240357,-500.0,0.00027671,2]
[313231862,1706980240366,-500.0,0.00027671,2]
[313231863,1706980240375,-500.0,0.00027671,2]
[313231864,1706980240383,-500.0,0.00027671,2]
[313231865,1706980240393,-500.0,0.00027671,2]
[313231866,1706980240401,-500.0,0.00027671,2]
[313231867,1706980240410,-835.37,0.00027671,2]
[313231868,1706980240419,-6605.22,0.00027671,2]
[313231869,1706980240428,-599.8,0.00027671,2]
[313231870,1706980240437,-500.0,0.00027671,2]
[313231871,1706980240446,-4004.31,0.00027671,2]
[313231872,1706980240455,-500.0,0.00027945,2]
[313231873,1706980240465,-1644.95,0.00027945,2]
[313231874,1706980240474,-500.0,0.00027945,2]
[313231875,1706980240483,-502.56,0.00027945,2]
[313231876,1706980240493,-500.0,0.00027945,2]
[313231877,1706980240502,-500.0,0.00027945,2]
[313231878,1706980240512,-500.0,0.00027945,2]
[313231879,1706980240525,-835.37,0.00027945,2]
[313231880,1706980240535,-6605.22,0.00027945,2]
[313231881,1706980240544,-599.8,0.00027945,2]
[313231883,1706980240554,-500.0,0.00027945,2]
[313231884,1706980240564,-4004.31,0.00027945,2]
[313231885,1706980240573,-500.0,0.00028219,2]
[313231886,1706980240583,-1644.95,0.00028219,2]
[313231887,1706980240592,-502.56,0.00028219,2]
[313231888,1706980240606,-500.0,0.00028219,2]
[313231890,1706980240616,-500.0,0.00028219,2]
[313231892,1706980240625,-500.0,0.00028219,2]
[313231894,1706980240634,-835.37,0.00028219,2]
[313231896,1706980240643,-6605.22,0.00028219,2]
[313231898,1706980240653,-599.8,0.00028219,2]
[313231899,1706980240662,-218.21257732,0.00028219,2]
[313231901,1706980240671,-4004.31,0.00028219,2]
[313231902,1706980240680,-8668.59935887,0.0002837,4]
[313231903,1706980240690,-500.0,0.00028493,2]
[313231904,1706980240699,-1644.95,0.00028493,2]
[313231905,1706980240708,-502.56,0.00028493,2]
[313231906,1706980240717,-500.0,0.00028493,2]
[313231907,1706980240726,-500.0,0.00028493,2]
[313231908,1706980240735,-500.0,0.00028493,2]
[313231909,1706980240744,-835.37,0.00028493,2]
[313231910,1706980240754,-6605.22,0.00028493,2]
[313231911,1706980240763,-599.8,0.00028493,2]
[313231912,1706980240772,-4004.31,0.00028493,2]
[313231913,1706980240781,-199.7424242,0.00028493,2]
[313231914,1706980240791,-199.7424242,0.00028493,2]
[313231915,1706980240800,-199.7424242,0.00028493,2]
[313231916,1706980240809,-161.8023947,0.00028493,2]
[313231917,1706980240818,-259.0506465,0.00028581,3]
[313231918,1706980240828,-5000.0,0.00028581,5]
[313231919,1706980240838,-5000.0,0.00028582,5]
[313231920,1706980240848,-5000.0,0.00028613,5]
[313231921,1706980240862,-167.12566222,0.00028699,2]
[313231922,1706980240878,-300.0,0.00028721,2]
[313231923,1706980240887,-500.0,0.00028767,2]
[313231924,1706980240898,-1644.95,0.00028767,2]
[313231925,1706980240908,-502.56,0.00028767,2]
[313231926,1706980240917,-500.0,0.00028767,2]
[313231927,1706980240927,-500.0,0.00028767,2]
[313231928,1706980240936,-500.0,0.00028767,2]
[313231929,1706980240945,-835.37,0.00028767,2]
[313231930,1706980240955,-6605.22,0.00028767,2]
[313231931,1706980240965,-599.8,0.00028767,2]
[313231932,1706980240974,-1205.38084974,0.00028798,2]
[313231933,1706980240984,-592.50545956,0.00028798,2]
[313231934,1706980240994,-332.54514333,0.00028798,2]
[313231935,1706980241003,-232.57161106,0.00028819,2]
[313231936,1706980241012,-500.0,0.00029041,2]
[313231937,1706980241022,-1644.95,0.00029041,2]
[313231938,1706980241031,-502.56,0.00029041,2]
[313231939,1706980241040,-500.0,0.00029041,2]
[313231940,1706980241050,-500.0,0.00029041,2]
[313231941,1706980241060,-500.0,0.00029041,2]
[313231942,1706980241069,-835.37,0.00029041,2]
[313231943,1706980241078,-6605.22,0.00029041,2]
[313231944,1706980241087,-599.8,0.00029041,2]
[313231945,1706980241097,-3243.80737766,0.0002928,2]
[313231946,1706980241107,-577.0,0.000293,2]
[313231947,1706980241116,-500.0,0.00029315,2]
[313231948,1706980241126,-1644.95,0.00029315,2]
[313231949,1706980241135,-502.56,0.00029315,2]
[313231950,1706980241145,-500.0,0.00029315,2]
[313231951,1706980241154,-564.61031881,0.00029315,2]
[313231952,1706980241164,-500.0,0.00029315,2]
[313231953,1706980241173,-835.37,0.00029315,2]
[313231954,1706980241183,-6605.22,0.00029315,2]
[313231955,1706980241193,-599.8,0.00029315,2]
[313231956,1706980241203,-306.0,0.00029315,2]
[313231957,1706980241212,-307.3855345,0.00029315,2]
[313231958,1706980241221,-153.4634771,0.00029315,2]
[313231959,1706980241231,-207.7973928,0.00029315,2]
[313231960,1706980241241,-420.4280906,0.00029315,2]
[313231961,1706980241251,-403.7212813,0.00029315,2]
[313231962,1706980241261,-153.0,0.00029315,2]
[313231963,1706980241272,-153.0,0.00029315,2]
[313231964,1706980241282,-153.0,0.00029315,2]
[313231965,1706980241292,-153.0,0.00029315,2]
[313231968,1706980241415,-391.0,0.0002934,15]
[313231969,1706980241426,-155.0,0.000295,2]
[313231970,1706980241436,-500.0,0.00029589,2]
[313231971,1706980241445,-1644.95,0.00029589,2]
[313231972,1706980241455,-502.56,0.00029589,2]
[313231973,1706980241464,-500.0,0.00029589,2]
[313231974,1706980241473,-500.0,0.00029589,2]
[313231975,1706980241483,-835.37,0.00029589,2]
[313231977,1706980241492,-6605.22,0.00029589,2]
[313231979,1706980241502,-599.8,0.00029589,2]
[313231980,1706980241513,-155.3077794,0.00029725,2]
[313231981,1706980241523,-75496.50358788,0.00029778,2]
[313231983,1706980241619,-1138.492502,0.00028767,2]
[313231984,1706980241630,-2865.817498,0.00028767,2]
[313231985,1706980241639,-70.63950744,0.00029778,2]
[313231986,1706980241651,-2542.30151515,0.00029778,2]
[313231987,1706980241724,-299.69809056,0.00029041,2]
[313231988,1706980241735,-3704.61190944,0.00029041,2]
[313231989,1706980241745,-4004.31,0.00029315,2]
[313231990,1706980241754,-4004.31,0.00029589,2]
[313231991,1706980241764,-4953.2245175,0.00029778,2]
[313231992,1706980241773,-177.32679241,0.00029861,2]
[313231993,1706980241783,-179.71987076,0.00029861,2]
[313231994,1706980241792,-683.44618662,0.00029861,2]
[313231995,1706980241801,-155.38898574,0.00029861,2]
[313231996,1706980241810,-540.44209488,0.00029861,2]
[313231997,1706980241819,-600.0,0.00029861,2]
[313231998,1706980241829,-1020.76212019,0.00029861,2]
[313231999,1706980241841,-677.22578059,0.00029861,2]
[313232000,1706980241850,-3227.3916514,0.00029861,2]
[313232001,1706980241861,-2687.58991263,0.00029861,2]
[313232002,1706980241871,-213.63828933,0.00029861,2]
[313232003,1706980241880,-93.77181804,0.00029862,2]
[313232004,1706980241892,-61.45853144,0.00029862,2]
[313232005,1706980241901,-542.68475956,0.00029862,2]
[313232006,1706980241910,-351.56937361,0.00029862,2]
[313232007,1706980241919,-611.38105736,0.00029862,2]
[313232008,1706980241928,-208.08767514,0.00029862,2]
[313232009,1706980241937,-363.94980791,0.00029862,2]
[313232010,1706980241946,-500.0,0.00029862,2]
[313232011,1706980241955,-300.59674465,0.00029862,2]
[313232012,1706980241964,-500.0,0.00029862,2]
[313232013,1706980241973,-3198.8896153,0.00029863,2]
[313232014,1706980241982,-376.1834497,0.00029863,2]
[313232015,1706980241991,-279.73730157,0.00029863,2]
[313232016,1706980242000,-178.04811419,0.00029863,2]
[313232017,1706980242009,-312.93612725,0.00029863,2]
[313232018,1706980242019,-481.63469255,0.00029863,2]
[313232019,1706980242028,-1644.95,0.00029863,2]
[313232020,1706980242037,-502.56,0.00029863,2]
[313232021,1706980242046,-500.0,0.00029863,2]
[313232022,1706980242056,-500.0,0.00029863,2]
[313232023,1706980242065,-835.37,0.00029863,2]
[313232024,1706980242074,-6605.22,0.00029863,2]
[313232025,1706980242083,-599.8,0.00029863,2]
[313232026,1706980242092,-4004.31,0.00029863,2]
[313232027,1706980242101,-155.70389166,0.00029874,2]
[313232028,1706980242110,-155.29980149,0.00029874,2]
[313232029,1706980242120,-322.60365913,0.00029875,2]
[313232030,1706980242130,-444.35794692,0.00029876,2]
[313232031,1706980242141,-78.25137969,0.00029876,2]
[313232032,1706980242150,-194.89526067,0.00029876,2]
[313232033,1706980242158,-279.19169226,0.00029878,2]
[313232034,1706980242168,-261.07466352,0.00029878,2]
[313232057,1706980243330,-184.65445826,0.00029878,2]
[313232058,1706980243339,-403.56127463,0.00029878,2]
[313232081,1706980509963,155.02325349,0.0002,2]
[313232086,1706980571285,625.207537,0.0001987,2]
[313232095,1706980990177,278.6069465,0.00020009,2]
[313232096,1706980990633,5848.46839529,0.00020009,2]
[313232097,1706980992655,155.01860223,0.00020009,2]
[313232098,1706980996318,330.23570657,0.00020009,2]
[313232099,1706980997233,589.57572061,0.00020009,2]
[313232100,1706980999802,167.3557263,0.00020009,2]
[313232101,1706981000697,155.01860223,0.00020009,2]
[313232102,1706981003005,273.16924148,0.00020009,2]
[313232103,1706981010028,3785.06,0.00020001,3]
[313232104,1706981016341,2820.01011613,0.00020009,2]
[313232105,1706981020277,155.01860223,0.00020009,4]
[313232106,1706981021012,249.69615624,0.00020009,2]
[313232107,1706981021125,3154.22,0.00020001,3]
[313232108,1706981021831,37034.1990655,0.00020009,2]
[313232109,1706981023863,155.01860223,0.00020009,2]
[313232110,1706981032148,4770.32,0.00020001,3]
[313232111,1706981032707,2043.1368023,0.00020009,2]
[313232112,1706981033642,19120.93202142,0.00020009,2]
[313232113,1706981033745,4176.84141118,0.00020009,2]
[313232114,1706981033779,1997.51914833,0.00020009,2]
[313232115,1706981034330,2820.01011613,0.00020009,2]
[313232116,1706981035929,1205.38084974,0.00020009,2]
[313232117,1706981036284,155.01860223,0.00018008,3]
[313232118,1706981038036,155.01860223,0.00020009,2]
[313232119,1706981039870,155.01860223,0.00020009,2]
[313232120,1706981042645,3975.26,0.00020001,3]
[313232121,1706981045769,1995.15101024,0.00020009,2]
[313232122,1706981046695,2041.75712479,0.00020009,2]
[313232123,1706981050041,155.01860223,0.00020009,2]
[313232124,1706981050915,2107.98461723,0.00020009,2]
[313232125,1706981051641,2591.76450654,0.00019809,2]
[313232126,1706981053574,3312.72,0.00020001,3]
[313232127,1706981053740,4176.84141118,0.00020009,2]
[313232128,1706981054284,155.01860223,0.00018008,3]
[313232129,1706981056329,2820.01011613,0.00020009,2]
[313232130,1706981061868,155.01860223,0.00020009,2]
[313232131,1706981063900,2760.6,0.00020001,3]
[313232132,1706981064892,527.74060739,0.00020009,2]
[313232133,1706981065666,83865.18058421,0.00020009,2]
[313232134,1706981065734,589.57572061,0.00020009,2]
[313232135,1706981069746,4176.84141118,0.00020009,2]
[313232136,1706981070291,155.01860223,0.00018008,3]
[313232137,1706981071301,167.3557263,0.00020009,2]
[313232138,1706981072052,155.01860223,0.00020009,2]
[313232139,1706981075692,5848.46839529,0.00020009,2]
[313232140,1706981076594,312.603768,0.00019898,2]
[313232141,1706981111165,20938.61895721,0.00020009,2]
[313232144,1706981216537,802.45856235,0.00020009,2]
[313232145,1706981218672,155.01860223,0.00020009,2]
[313232146,1706981220403,689.47929116,0.00020009,2]
[313232148,1706981278483,580.99550276,0.00019915,2]
[313232150,1706981320314,155.01860223,0.00020009,4]
[313232157,1706981388383,2820.01011613,0.00020009,2]
[313232161,1706981394415,155.01860223,0.00020009,2]
[313232163,1706981406711,1585.69628601,0.00020009,2]
[313232210,1706981432425,-4121.58874658,0.0002001,2]
[313232211,1706981432445,-15781.08148453,0.0002001,2]
[313232212,1706981432459,-15651.47925234,0.0002001,2]
[313232213,1706981432468,-167.943568,0.00020195,2]
[313232214,1706981432478,-341.04952764,0.0002054,2]
[313232215,1706981432488,-155.77264022,0.0002054,2]
[313232217,1706981432498,-292.72601981,0.00020541,2]
[313232218,1706981432508,-332.54514333,0.00020541,2]
[313232220,1706981432518,-158.95416115,0.00020549,2]
[313232221,1706981432534,-357.57116779,0.00020657,2]
[313232223,1706981432546,-310.02945374,0.00020823,2]
[313232225,1706981432557,-245.85399262,0.00020838,2]
[313232227,1706981432567,-2282.48977409,0.00020894,2]
[313232229,1706981432578,-1203.58160915,0.00020895,2]
[313232231,1706981432588,-1278.26817001,0.00020895,2]
[313232232,1706981432597,-155.13375864,0.00020918,2]
[313232234,1706981432607,-1094.92230597,0.00020929,2]
[313232235,1706981432617,-155.04370226,0.0002093,2]
[313232236,1706981432628,-154.9690062,0.00020938,2]
[313232237,1706981432637,-159.4566598,0.00021198,2]
[313232238,1706981432647,-155.01860223,0.00021917,4]
[313232239,1706981432656,-166.666666,0.00021918,2]
[313232240,1706981432666,-3977.44618093,0.00022,2]
[313232242,1706981432676,-426.88835692,0.00022,2]
[313232243,1706981432686,-200.0,0.0002201,7]
[313232245,1706981432696,-534.9723749,0.0002243,2]
[313232247,1706981432705,-166.666666,0.00022431,2]
[313232249,1706981432715,-166.666666,0.00022944,2]
[313232251,1706981432724,-9959.98060866,0.00023,2]
[313232253,1706981432733,-1262.10938839,0.00023,2]
[313232255,1706981432743,-150.67095252,0.00023069,2]
[313232257,1706981432753,-1224.3,0.00023159,3]
[313232259,1706981432762,-2096.45,0.00023159,3]
[313232261,1706981432776,-1747.04,0.00023159,3]
[313232263,1706981432785,-978.95259375,0.00023182,2]
[313232264,1706981432795,-580.99550269,0.00023282,2]
[313232265,1706981432804,-166.666666,0.00023456,2]
[313232266,1706981432813,-166.666666,0.00023969,2]
[313232267,1706981432823,-4035.82532571,0.00024,2]
[313232268,1706981432832,-280.0,0.00024211,7]
[313232269,1706981432842,-1455.87,0.00024338,3]
[313232270,1706981432851,-1000.0,0.00024348,2]
[313232271,1706981432861,-1000.0,0.00024348,2]
[313232272,1706981432870,-1000.0,0.00024348,2]
[313232273,1706981432880,-1000.0,0.00024348,2]
[313232274,1706981432891,-1000.0,0.00024348,2]
[313232275,1706981432902,-1000.0,0.00024348,2]
[313232276,1706981432914,-1000.0,0.00024348,2]
[313232277,1706981432924,-1000.0,0.00024348,2]
[313232278,1706981432934,-1000.0,0.00024348,2]
[313232279,1706981432946,-1000.0,0.00024348,2]
[313232280,1706981432958,-1000.0,0.00024348,2]
[313232281,1706981432967,-1000.0,0.00024348,2]
[313232282,1706981432976,-1000.0,0.00024348,2]
[313232283,1706981432986,-1000.0,0.00024348,2]
[313232284,1706981432996,-1000.0,0.00024348,2]
[313232285,1706981433005,-728.57550921,0.00024349,2]
[313232286,1706981433015,-218.57265277,0.00024349,2]
[313232287,1706981433026,-166.37948666,0.00024349,2]
[313232288,1706981433035,-174.69846099,0.00024349,2]
[313232289,1706981433044,-166.666666,0.00024482,2]
[313232290,1706981433054,-499.59176388,0.0002496,5]
[313232291,1706981433063,-335.29979556,0.00025,2]
[313232292,1706981433074,-157.74919141,0.00025397,2]
[313232293,1706981433083,-1376.17142624,0.00025397,2]
[313232294,1706981433093,-819.13450634,0.00025397,2]
[313232295,1706981433102,-156.01572126,0.00025397,2]
[313232296,1706981433111,-1519.18073932,0.00025397,2]
[313232297,1706981433120,-155.01860223,0.00025397,2]
[313232298,1706981433130,-1585.12539899,0.00025397,2]
[313232299,1706981433140,-592.31605826,0.00025398,2]
[313232300,1706981433149,-167.01063018,0.00025398,2]
[313232301,1706981433158,-18946.12672033,0.00025398,2]
[313232302,1706981433168,-39923.60323048,0.00025399,2]
[313232303,1706981433176,-1875.99657224,0.00025399,2]
[313232304,1706981433186,-200.0,0.00025479,2]
[313232305,1706981433195,-1848.72209752,0.00025497,2]
[313232306,1706981433206,-338.5068225,0.00025497,2]
[313232307,1706981433215,-295.88721157,0.00025497,2]
[313232308,1706981433225,-155.60810155,0.00025497,2]
[313232309,1706981433236,-157.48561625,0.00025497,2]
[313232310,1706981433245,-336.8743585,0.00025497,2]
[313232311,1706981433255,-1277.53947422,0.00025497,2]
[313232312,1706981433265,-167.14969705,0.00025497,2]
[313232313,1706981433275,-197.50415802,0.00025497,2]
[313232314,1706981433285,-309.78316417,0.00025497,2]
[313232315,1706981433294,-3243.80737766,0.00025498,2]
[313232316,1706981433303,-1000.0,0.00025499,3]
[313232317,1706981433312,-1023.88339212,0.00025499,3]
[313232318,1706981433322,-3326.84002864,0.000255,2]
[313232319,1706981433331,-2055.17614731,0.00025661,2]
[313232320,1706981433341,-150.67095252,0.00025708,2]
[313232321,1706981433350,-232.57161112,0.00025708,2]
[313232322,1706981433359,-155.33656758,0.00025758,2]
[313232323,1706981433368,-166.90788547,0.00025758,2]
[313232324,1706981433378,-175.43157375,0.00025758,2]
[313232325,1706981433389,-20899.05725792,0.00025758,2]
[313232326,1706981433399,-556.20773545,0.00025758,2]
[313232327,1706981433408,-310.01705101,0.00025758,2]
[313232328,1706981433418,-620.23996484,0.00025758,2]
[313232329,1706981433428,-155.69463046,0.00025758,2]
[313232330,1706981433438,-155.24324471,0.00025758,2]
[313232331,1706981433449,-500.0,0.00025758,2]
[313232332,1706981433458,-2019.73680266,0.00025758,2]
[313232333,1706981433468,-155.59662081,0.00025758,2]
[313232334,1706981433478,-261.54990155,0.00025758,2]
[313232335,1706981433487,-161.25377487,0.00025758,2]
[313232336,1706981433496,-228.21554761,0.00025758,2]
[313232337,1706981433505,-522.79204852,0.00025758,2]
[313232338,1706981433515,-181.23168733,0.00025758,2]
[313232339,1706981433527,-1244.37744405,0.00025759,2]
[313232340,1706981433538,-18933.9483255,0.00025759,2]
[313232341,1706981433547,-499.62988618,0.00025805,2]
[313232342,1706981433557,-500.0,0.00025805,2]
[313232343,1706981433566,-500.0,0.00025805,2]
[313232344,1706981433575,-500.0,0.00025805,2]
[313232345,1706981433585,-500.0,0.00025805,2]
[313232346,1706981433598,-500.0,0.00025805,2]
[313232347,1706981433608,-500.0,0.00025805,2]
[313232348,1706981433617,-500.0,0.00025805,2]
[313232349,1706981433628,-500.0,0.00025805,2]
[313232350,1706981433638,-500.0,0.00025805,2]
[313232351,1706981433647,-500.0,0.00025805,2]
[313232352,1706981433656,-500.0,0.00025805,2]
[313232353,1706981433665,-500.0,0.00025805,2]
[313232354,1706981433674,-500.0,0.00025805,2]
[313232355,1706981433684,-500.0,0.00025805,2]
[313232356,1706981433693,-500.0,0.00025805,2]
[313232357,1706981433702,-500.0,0.00025805,2]
[313232358,1706981433711,-500.0,0.00025805,2]
[313232359,1706981433721,-500.0,0.00025805,2]
[313232360,1706981433731,-500.0,0.00025805,2]
[313232361,1706981433739,-500.0,0.00025805,2]
[313232362,1706981433749,-503.89750833,0.00025805,2]
[313232363,1706981433758,-500.0,0.00025805,2]
[313232364,1706981433767,-500.0,0.00025805,2]
[313232365,1706981433780,-500.0,0.00025805,2]
[313232366,1706981433791,-500.0,0.00025805,2]
[313232367,1706981433801,-500.0,0.00025805,2]
[313232368,1706981433811,-650.0,0.00025805,2]
[313232369,1706981433820,-500.0,0.00025805,2]
[313232370,1706981433830,-500.0,0.00025805,2]
[313232371,1706981433839,-500.0,0.00025805,2]
[313232372,1706981433848,-500.0,0.00025805,2]
[313232373,1706981433858,-500.0,0.00025805,2]
[313232374,1706981433867,-500.0,0.00025805,2]
[313232375,1706981433876,-500.0,0.00025805,2]
[313232376,1706981433886,-500.0,0.00025805,2]
[313232377,1706981433898,-500.0,0.00025805,2]
[313232378,1706981433907,-500.0,0.00025805,2]
[313232379,1706981433917,-500.0,0.00025805,2]
[313232380,1706981433927,-250.0,0.00025805,2]
[313232381,1706981433937,-500.0,0.00025805,2]
[313232382,1706981433947,-500.0,0.00025805,2]
[313232383,1706981433957,-500.0,0.00025805,2]
[313232384,1706981433967,-500.0,0.00025805,2]
[313232385,1706981433978,-500.0,0.00025805,2]
[313232386,1706981433989,-500.0,0.00025805,2]
[313232387,1706981433999,-500.0,0.00025805,2]
[313232388,1706981434124,-203.78036712,0.00025805,2]
[313232389,1706981434134,-500.0,0.00025805,2]
[313232390,1706981434144,-500.0,0.00025805,2]
[313232391,1706981434153,-500.0,0.00025805,2]
[313232392,1706981434164,-500.0,0.00025805,2]
[313232393,1706981434174,-500.0,0.00025805,2]
[313232394,1706981434183,-500.0,0.00025805,2]
[313232395,1706981434193,-500.0,0.00025805,2]
[313232396,1706981434203,-569.78822444,0.00025805,2]